Cogmind - Beta 13 X1 @@@ ROGUE MODE // 2023.06.21 @ 21:35:29 Player: Plexion Result: Self-destructed Performance ------------- Evolutions (2) 1000 Regions Visited (3) 600 Robots Destroyed (64) 320 Value Destroyed (1876) 1876 Prototype IDs (11) 220 Alien Tech Used (0) 0 Bonus (-347) -347 TOTAL SCORE: 3669 Bonus ------- Friendly Fire -347 Cogmind --------- Core Integrity 359/550 Matter 290/300 Energy 280/280 System Corruption 0% Temperature Cool (0) Movement Walking (180) Ox1 Location -8/Materials Parts ------- > --- POWER (1) -------- Heavy Ion Engine > --- PROPULSION (3) --- Arachnoskeleton > --- UTILITY (5) ------ Improved Heat Sink High-capacity Storage Unit Advanced Targeting Computer Core Shielding Light Armor Plating > --- WEAPON (2) ------- Heavy Assault Rifle Makeshift Axe > --- INVENTORY (20) --- Light Treads Light Treads Armored Treads Advanced Treads Large Storage Unit Hacking Suite EM Pulse Gun Heavy Assault Rifle Battle Rifle Subdweller Machine Gun High-powered Shotgun Subdweller Shrapnel Launcher Subdweller Shrapnel Launcher Subdweller Shrapnel Launcher Plasma Cutter Peak State ------------ > --- POWER ------------ Makeshift Power Source > --- PROPULSION ------- Light Treads Spiked Treads Arachnoskeleton Subdweller Monowheel > --- UTILITY ---------- Improved Heat Sink Large Storage Unit Makeshift Armor Plating Scrap Shield > --- WEAPON ----------- Heavy Assault Rifle Battle Rifle > --- INVENTORY -------- Hacking Suite EM Pulse Gun Subdweller Machine Gun Subdweller Shrapnel Launcher Subdweller Shrapnel Launcher Subdweller Shrapnel Launcher Plasma Cutter Ripper Makeshift Axe [Rating: 48] Favorites ----------- Power Light Ion Engine Engine Light Ion Engine Propulsion Spiked Treads Treads Spiked Treads Leg Arachnoskeleton Wheel Subdweller Monowheel Utility Large Storage Unit Device Improved Heat Sink Storage Large Storage Unit Processor Advanced Targeting Computer Protection Makeshift Armor Plating Weapon Subdweller Machine Gun Energy Gun EM Pulse Gun Energy Cannon Subdweller Beam Cannon Ballistic Gun Subdweller Machine Gun Launcher Subdweller Shrapnel Launcher Special Weapon Plasma Cutter Slashing Weapon Ripper Build | -11 -10 -10 -8 ------- Run | Jun Mat Sub Mat Slots Evolved 4 | . . . 4 Power . | . . . . Propulsion 1 | . . . 1 Utility 3 | . . . 3 Weapon . | . . . . Parts Attached 88 | 6 11 47 24 Power 7 | 1 . 5 1 Engine 7 | 1 . 5 1 Core . | . . . . Reactor . | . . . . Propulsion 15 | 2 1 8 4 Treads 12 | 2 1 7 2 Leg 1 | . . . 1 Wheel 2 | . . 1 1 Hover . | . . . . Flight . | . . . . Utility 12 | 1 1 1 9 Device 4 | . . . 4 Storage 3 | 1 1 . 1 Processor 1 | . . . 1 Hackware . | . . . . Protection 4 | . . 1 3 Artifact . | . . . . Weapon 54 | 2 9 33 10 Energy Gun 9 | 2 4 3 . Energy Cannon 1 | . . 1 . Ballistic Gun 22 | . . 15 7 Ballistic Cannon . | . . . . Launcher 12 | . 3 7 2 Special Weapon 3 | . 2 1 . Impact Weapon . | . . . . Slashing Weapon 7 | . . 6 1 Piercing Weapon . | . . . . Special Melee Weapon . | . . . . Unidentified Prototypes 1 | . . . 1 Parts Lost 19 | . . 9 10 Power 3 | . . 3 . Propulsion 6 | . . 3 3 Utility 5 | . . . 5 Weapon 5 | . . 3 2 Highest Loss Streak 7 | . . 7 3 To Critical Strikes 2 | . . 2 . Average Slot Usage (%) 92 | . 86 98 78 Engine 11 | . 14 12 8 Treads 22 | . 28 27 2 Leg 1 | . . . 8 Device 3 | . . . 14 Storage 15 | . 15 17 8 Processor 1 | . . . 4 Protection 9 | . . 10 10 Energy Gun 4 | . 12 5 . Ballistic Gun 16 | . . 18 16 Launcher 1 | . 2 1 . Special Weapon 1 | . 13 . . Slashing Weapon 1 | . . 2 . Naked Turns . | . . . . Heaviest Build 60 | 13 34 40 60 Greatest Support 50 | 40 40 40 50 Greatest Overweight (x) 1 | . . 1 1 Average Overweight (x) . | . . . . Largest Inventory Capacity 20 | 8 15 15 20 Average Capacity 14 | 6 8 15 17 Most Carried 15 | 2 5 15 15 Average Carried 12 | 1 4 14 13 Final Capacity 20 | 8 15 15 20 Final Carried 15 | 2 5 14 15 Class Distribution -------------------- 40% | Subdweller-Mutant 23% | Mutant 20% | Derelict-Mutant 14% | Scavenger-Mutant Dominant Class ---------------- Mutant | -10/Materials Subdweller-Mutant | -10/Subcaves Scavenger-Mutant | -8/Materials Resources | -11 -10 -10 -8 ----------- Run | Jun Mat Sub Mat Matter Collected 2208 | 260 90 1034 824 Remotely . | . . . . Salvage Created 2151 | 72 156 695 1228 Parts 133 | . 15 48 70 Haulers Intercepted . | . . . . Recyclers Shooed 3 | . . . 3 Parts Field Recycled . | . . . . Retrieved Matter . | . . . . Parts Self-Destructed 22 | . . 22 . Prevented . | . . . . Kills | -11 -10 -10 -8 ------- Run | Jun Mat Sub Mat Combat Hostiles Destroyed 53 | . 11 22 20 Guns 30 | . 2 8 20 AOE 23 | . 9 14 . Classes Destroyed 10 | 1 3 2 4 Worker 4 | . 2 . 2 Recycler 5 | 1 . . 4 Mechanic 1 | . . . 1 Operator 1 | . . . 1 Swarmer 14 | . 9 2 3 Grunt 11 | . 2 . 9 Duelist 1 | . . . 1 Sentry 7 | . . . 7 Artisan 1 | . . 1 . Subdweller 20 | . . 20 . Best Kill Streak 6 | 1 4 6 5 Combat Bots Only 6 | . 3 6 3 Max Kills in Single Turn 4 | 1 4 2 2 Gunslinging . | . . . . Exploded 3 | . 3 2 . Melee . | . . . . Uniques/NPCs Destroyed . | . . . . Combat | -11 -10 -10 -8 -------- Run | Jun Mat Sub Mat Damage Taken 2814 | . 316 1261 1237 Core 378 | . 48 139 191 Absorbed by Shields . | . . . . Redirected to Shielding 20 | . . . 20 Core Remaining (%) 62 | 100 . 25 . Volleys Fired 195 | 6 28 59 102 Largest 2 | 2 2 2 2 Hottest 90 | 90 90 90 65 Shots Fired 356 | 12 47 96 201 Gun 296 | 12 12 73 199 Cannon . | . . . . Launcher 34 | . 9 23 2 Special 26 | . 26 . . Kinetic 269 | . . 74 195 Thermal 20 | 12 6 2 . Explosive 13 | . 9 4 . Electromagnetic 28 | . 6 16 6 Impact 26 | . 26 . . Robot Hit Streak 19 | 3 3 19 12 Robot Miss Streak 4 | . 3 3 4 Penetration Max . | . . . . Secondary Targets 1 | . . . 1 Max Gunslinging Chain 1 | . . . 1 Shots Hit Robots 229 | 3 23 74 129 Core Hits 122 | 2 18 47 55 Critical Kills 2 | . . . 2 Critical Parts Destroyed 2 | . . . 2 Critical Strikes 9 | . 4 1 4 Destroy 5 | . . 1 4 Sever 4 | . 4 . . Melee Attacks 41 | . . 40 1 Impact . | . . . . Slashing 41 | . . 40 1 Piercing . | . . . . Sneak Attacks 1 | . . 1 . Combat Hostiles . | . . . . Follow-up Attacks . | . . . . Damage Inflicted 6251 | 34 619 3538 2060 Guns 3033 | 34 88 889 2022 Cannons . | . . . . Explosions 2489 | . 378 2079 32 Melee 570 | . . 570 . Ramming 6 | . . . 6 Kinetic 4102 | . . 2128 1974 Thermal 168 | 34 61 41 32 Explosive 1058 | . 378 680 . Electromagnetic 194 | . 27 119 48 Impact 153 | . 153 . . Slashing 570 | . . 570 . Piercing . | . . . . Highest Corruption . | . . . . Average Corruption . | . . . . Corruption Purged . | . . . . Corruption Blocked . | . . . . Overload Shots . | . . . . Overflow Damage 112 | . 31 81 . Projectiles 1 | . 1 . . Explosions 57 | . 30 27 . Melee 54 | . . 54 . Knockbacks 1 | . 1 . . Impact 1 | . 1 . . Kinetic . | . . . . Secondary . | . . . . Self-Inflicted Damage 271 | . 91 180 . Shots 10 | . 4 6 . Rammed . | . . . . Targets Rammed 2 | . . . 2 Kicked 2 | . . . 2 Crushed . | . . . . Highest Temperature 112 | 90 112 8 4 Average Temperature 31 | 46 55 3 3 Received Heat Transfer 687 | . 54 138 495 Siege Activations . | . . . . Robots Corrupted . | . . . . Combat Hostiles . | . . . . Parts Fried . | . . . . Impact Corruptions 1 | . 1 . . Robots Melted . | . . . . Combat Hostiles . | . . . . Parts Melted . | . . . . Heat Transferred 384 | 99 185 50 50 Parts Sabotaged . | . . . . Parts Stolen . | . . . . Parts Stripped . | . . . . Power Chain Reactions 1 | . . . 1 Missiles Intercepted . | . . . . Alert | -11 -10 -10 -8 ------- Run | Jun Mat Sub Mat Peak Influence 283 | 5 233 . 283 Initial 3 | . 3 . . Average 152 | 3 105 . 185 Maximum Alert Level 1 | . 1 . 1 Low Security (%) 61 | 100 92 . 45 Level 1 38 | . 7 . 54 Level 2 . | . . . . Level 3 . | . . . . Level 4 . | . . . . Level 5 . | . . . . High Security . | . . . . Max Security . | . . . . Squads Dispatched 2 | . . . 2 Investigation 1 | . . . 1 Extermination . | . . . . Reinforcement 1 | . . . 1 Assault . | . . . . Garrison . | . . . . Intercept . | . . . . Searches Triggered . | . . . . Construction Impeded . | . . . . Haulers Reinforced . | . . . . Active Scanning Responses . | . . . . Cargo Convoy Interrupts . | . . . . Stealth | -11 -10 -10 -8 --------- Run | Jun Mat Sub Mat Distress Signals 3 | . . . 3 Communications Jammed . | . . . . Distress Signals . | . . . . Times Spotted 74 | . 14 28 32 Peak Tracking Total 6 | . 5 5 6 Tactical Retreats 1 | . . 1 . Traps | -11 -10 -10 -8 ------- Run | Jun Mat Sub Mat Traps Triggered 4 | . 2 1 1 Indirectly . | . . . . Trap Hack Attempts . | . . . . Triggered . | . . . . Disarmed . | . . . . Reprogrammed . | . . . . Reused . | . . . . Traps Extracted . | . . . . Installed 1 | . . 1 . Triggered . | . . . . Machines | -11 -10 -10 -8 ---------- Run | Jun Mat Sub Mat Machines Disabled 3 | . . 1 2 Max in Single Turn 1 | . . 1 1 Garrison Access 1 | . . . 1 Machines Repaired . | . . . . Machines Sabotaged . | . . . . Overloaded Fab Kills . | . . . . Hacking | -11 -10 -10 -8 --------- Run | Jun Mat Sub Mat Machines Accessed 5 | . . 2 3 Terminals 2 | . . . 2 Fabricators . | . . . . Repair Stations . | . . . . Recycling Units . | . . . . Scanalyzers . | . . . . Garrison Access 1 | . . . 1 Total Hacks 18 | . . 12 6 Successful 15 | . . 12 3 Failed 3 | . . . 3 Catastrophic 1 | . . . 1 Database Lockouts . | . . . . Manual 1 | . . . 1 Terminals 5 | . . . 5 Fabricators . | . . . . Repair Stations . | . . . . Recycling Units . | . . . . Scanalyzers . | . . . . Garrison Access 1 | . . . 1 Terminal Hacks 14 | . . 12 2 Record 11 | . . 11 . Branch Access Points 1 | . . . 1 Zone Layout 1 | . . . 1 Derelict Proto ID Bank 1 | . . 1 . Fabricator Hacks . | . . . . Repair Station Hacks . | . . . . Recycling Unit Hacks . | . . . . Scanalyzer . | . . . . Garrison Access Hacks 1 | . . . 1 Seal Access 1 | . . . 1 Unauthorized Hacks . | . . . . Terminals . | . . . . Fabricators . | . . . . Repair Stations . | . . . . Recycling Units . | . . . . Scanalyzers . | . . . . Garrison Access . | . . . . Data Cores Recovered 1 | . . . 1 Used . | . . . . Hacking Detections 2 | . . . 2 Full Trace Events . | . . . . Feedback Events . | . . . . Feedback Blocked . | . . . . Robot Schematics Acquired . | . . . . Robots Built . | . . . . Authchips . | . . . . Time . | . . . . Total Robot Build Rating . | . . . . Part Schematics Acquired . | . . . . Parts Built . | . . . . Authchips . | . . . . Time . | . . . . Total Part Build Rating . | . . . . Parts Repaired . | . . . . Time . | . . . . Parts Recycled . | . . . . Recycled Matter . | . . . . Retrieved Matter . | . . . . Retrieved Components . | . . . . Parts Scanalyzed . | . . . . Part Schematics Acquired . | . . . . Parts Damaged . | . . . . Bothacking | -11 -10 -10 -8 ------------ Run | Jun Mat Sub Mat Used RIF Installer . | . . . . Robots Hacked . | . . . . Non-combat . | . . . . Combat . | . . . . Robot Hacks Applied . | . . . . Relay Couplers Released . | . . . . Fabnet Peak Effective % . | . . . . Robots Rewired . | . . . . Allies Hacked . | . . . . Hacks Repelled . | . . . . Allies | -11 -10 -10 -8 -------- Run | Jun Mat Sub Mat Total Allies . | . . . . Largest Group . | . . . . Highest-Rated Group . | . . . . Highest-Rated Ally . | . . . . Total Orders . | . . . . Ally Attacks . | . . . . Total Damage . | . . . . Kills . | . . . . Allies Corrupted . | . . . . Allies Melted . | . . . . Intel | -11 -10 -10 -8 ------- Run | Jun Mat Sub Mat Robot Analysis Total . | . . . . Derelict Logs Recovered 2 | . . 2 . Drone Launches . | . . . . Drone Recoveries . | . . . . Exploration | -11 -10 -10 -8 ------------- Run | Jun Mat Sub Mat Turns Passed 5645 | 123 481 3800 1241 Spaces Moved 3019 | 61 223 2138 597 Core 2 | 2 . . . Treads 2420 | 59 223 2138 . Legs 597 | . . . 597 Wheels . | . . . . Hover . | . . . . Flight . | . . . . Fastest Speed 50 | 50 160 160 90 Average Speed 156 | 156 160 160 143 Slowest Speed 260 | 160 160 260 180 Overloaded Moves . | . . . . Propulsion Burnouts . | . . . . Robots Hopped . | . . . . Cave-ins Triggered . | . . . . Exploration Rate (%) 55 | 5 58 94 66 Regions Visited 3 Branch Regions 1 Pre-discovered Areas . | . . . . Known Exits Taken . | . . . . Unknown Exits Taken 3 | 1 1 1 . Scrap Searched 21 | . . 21 . Spaces Dug 54 | . 11 27 16 Terrain Destroyed 319 | . 39 242 38 Melee 10 | . . 9 1 Projectile 3 | . . 1 2 AOE 306 | . 39 232 35 Terrain Rammed . | . . . . Walls Destroyed . | . . . . Machines Disabled . | . . . . Actions | -11 -10 -10 -8 --------- Run | Jun Mat Sub Mat Total 3477 | 74 269 2353 781 Wait 66 | . 5 23 38 Move 3016 | 60 222 2137 597 Hop . | . . . . Pick Up 35 | 2 3 20 10 Fast Attach 30 | 6 3 12 9 Attach 14 | . . 7 7 Detach 6 | . . 4 2 Swap 44 | . 8 28 8 Drop 27 | . . 22 5 Fire 195 | 6 28 59 102 Melee 41 | . . 40 1 Ram . | . . . . Kick 2 | . . . 2 Crush . | . . . . Escape Stasis . | . . . . Rewire . | . . . . Trap 1 | . . 1 . Miscellaneous . | . . . . Route ------- -11/Junkyard -10/Materials (discovered 3 exits: [*Mat] / [*Min] / *Sub) -10/Subcaves (discovered 2 exits: [*Mat] / *Mat) -8/Materials (discovered 2 exits: [*Fac x2]) History --------- Turn | Location | Event 6 | -11/Junkyard | Discovered new exit (range 15) 124 | -11/Junkyard | Entered Materials 302 | -10/Materials | Build established: Mutant 387 | -10/Materials | Discovered new exit (range 11) 534 | -10/Materials | Discovered new exit (range 10) 588 | -10/Materials | Discovered new exit (range 9) 605 | -10/Materials | Entered Subcaves 605 | -10/Subcaves | Learned Materials stockpile data 699 | -10/Subcaves | Ambushed by swarm of Subdwellers 895 | -10/Subcaves | Disturbed a concealed Subdweller 1170 | -10/Subcaves | Build established: Subdweller-Mutant 1849 | -10/Subcaves | A swath of the cavern ceiling suddenly collapsed 2043 | -10/Subcaves | Discovered new exit (range 9) 2298 | -10/Subcaves | Disturbed a concealed Subdweller 2521 | -10/Subcaves | A swath of the cavern ceiling suddenly collapsed 2690 | -10/Subcaves | Visited Clippyterm 2694 | -10/Subcaves | Learned Research machine intel 3425 | -10/Subcaves | Shifting Twisted Machinery released Barrage Gun 3508 | -10/Subcaves | Core integrity fell below 50% 3550 | -10/Subcaves | Lost 7 parts (1p3n3w) 3646 | -10/Subcaves | Shifting Twisted Machinery released Sub. Machine Gun 3715 | -10/Subcaves | Learned Materials stockpile data 3761 | -10/Subcaves | Build established: Mutant 3842 | -10/Subcaves | Visited 4L-MR0's lab 3862 | -10/Subcaves | Found Arachnoskeleton 4049 | -10/Subcaves | Shifting Twisted Machinery released Flamer 4087 | -10/Subcaves | Shifting Twisted Machinery released Battle Rifle 4119 | -10/Subcaves | Build established: Derelict-Mutant 4195 | -10/Subcaves | Shifting Twisted Machinery released Battle Cannon 4286 | -10/Subcaves | Discovered new exit (range 9) 4405 | -10/Subcaves | Entered Materials 4405 | -8/Materials | Evolved 4 slots: Propulsion x1, Utility x3 4407 | -8/Materials | Attached Arachnoskeleton, gained temporary slots: Propulsion x3 4716 | -8/Materials | Lost 3 parts (1n2u) 5012 | -8/Materials | Build established: Scavenger-Mutant 5213 | -8/Materials | Discovered new exit (range 16) 5317 | -8/Materials | Lost 3 parts (1u2w) 5634 | -8/Materials | Discovered new exit (range 8) 5646 | -8/Materials | Self-destructed Last Messages --------------- 05432_ U-05 Engineer lays Concrete. 05441_ U-05 Engineer builds a Wall. 05445_ U-05 Engineer lays Concrete. 05459_ U-05 Engineer builds a Door. 05501_ U-05 Engineer builds a Wall. 05515_ K-01 Serf cleans the Terminal. 05519_ K-01 Serf cleans the Purification Channel. 05522_ K-01 Serf cleans the Terminal. 05536_ Y-45 Defender destroyed. 05541_ K-01 Serf cleans the Purification Channel. 05545_ K-01 Serf collects debris. 05545_ U-05 Engineer builds a Wall. 05546_ Kicked U-05 Engineer out of the way. 05548_ K-01 Serf collects debris. 05548_ R-06 Scavenger collects Lgt. Treads. 05552_ R-06 Scavenger collects Heat Sink. 05553_ Acquired 23 matter. 05555_ K-01 Serf collects debris. 05633_ U-05 Engineer builds a Wall. 05634_ EXIT=FOUND Map ----- +----------------------------------------------------+ | ?????????# + # """ """ """ # #? | | ?????????# # # """ """ """ # #? | | ?????????# # # # #? | | ?????????############## ################ #? | | ??????????????######### # ! #?????#####? | | ??????????????# ! # # #??????????? | | ??????????????# "T" + + #??????????? | | ??????????????# = # # #??????????? | | ??????????????###+##### ###########??????????? | | ???????????????# # #?######?????????????? | | ???????????????# # #? #?????????????? | | ???????????????# "" #u # #?????????????? | | ???????????????# "T # # "" #?????????????? | | ???????????????# "" + ^+ Y" #?????????????? | | ???????????????# # ^# "" #?????????????? | | ?????????????########## # [ #?????????????? | | ?????????????? # #?######?????????????? | | ?????????????? """ # #????????????????????? | | ?????????????? """ # #????????????????????? | | ?????????????# """ # #????????????????????? | | ?????????????# ] + #????????????????????? | | ?????????????# """ # #????????????????????? | | ?????????????# """ # #????????????????????? | | ?????????????# """ ?# #####????????????????? | | ?????????????? ?# #????????????????? | | ?????????????#######??# @ < #????????????????? | | ??????????????????????# #????????????????? | | ??????????????????????#########????????????????? | | ???????????????????????????????????????????????? | | ???????????????????????????????????????????????? | | ???????????????????????????????????????????????? | | ???????????????????????????????????????????????? | | ???????????????????????????????????????????????? | | ???????????????????????????????????????????????? | | ???????????????????????????????????????????????? | | | | | | | | | | | | | | | | | | | | | | | | | | | | | | | +----------------------------------------------------+ Best States ------------- Heat Dissipation 75 Energy Generation 15 Energy Capacity 280 Matter Stores 300 Matter Capacity 300 Sight Range 16 Terrain Scan Density 10 Armor Coverage 900 Core Shielding 20 Evasion (%) 57 Targeting Accuracy 8 Recoil Reduction 2 Item Schematics ----------------- None Robot Schematics ------------------ None Fabricated ------------ Nothing Alien Tech Used ----------------- None Achievements -------------- None Challenges ------------ None Game ------ Seed CarbideFlightNanovents Manual? 0 Play Time 00:50:31 Cumulative 408.6 hours Start 2023.06.21 @ 20:38:12 End 2023.06.21 @ 21:35:29 Sessions 5 Manual Loads 0 Difficulty Rogue Special Mode None Game No. 488 Rogue 401 Adventurer 87 Explorer 0 Win Type - Total 21 Types 7/0/12/1/1/0/0/0/0 Lore% 84 Gallery% 89 Achievement% 73 Wizard Run 0 Options --------- ASCII 0 Keyboard 1 Movement Numpad Keybinds 0 Fullscreen 1 Font 18/SmallcapsGlow Map View 76x50 Tactical HUD 1 Map Filters NONE Filters NONE Steam 1 RUN: fc46347b-ce1e-4e35-8bc0-f8600ad30e78